bitfinex-derivatives/quotes_ETHF0:USTF0_20241229
["timestamp","ask_amount","ask_price","bid_price","bid_amount"]
[1735437055650,0.9356,3382.5,3382.4,0.29613]
[1735437056749,0.9356,3382.5,3382.3,0.29614]
[1735437056949,1.23172,3382.5,3382.3,0.29614]
[1735437057859,0.9356,3382.5,3382.3,0.29614]
[1735437058557,0.9356,3382.5,3382.4,0.29613]
[1735437058750,0.9356,3382.5,3382.0,0.8816]
[1735437058951,1.23173,3382.5,3382.2,0.29614]
[1735437059151,1.23173,3382.5,3382.3,0.29614]
[1735437059459,0.9356,3382.5,3382.4,0.29613]
[1735437059756,0.5,3382.6,3382.5,0.29612]
[1735437061656,0.5,3382.7,3382.6,0.29611]
[1735437061849,0.5395,3383.5,3383.4,0.29604]
[1735437062160,0.5395,3383.5,3383.4,3.50384]
[1735437067953,0.83553,3383.5,3383.4,3.2078]
[1735437068550,3.22598443,3383.5,3382.6,0.29611]
[1735437068757,0.11,3383.0,3382.4,4.093]
[1735437069063,0.29612,3382.5,3382.4,0.4263]
[1735437069261,0.29615,3382.3,3382.0,0.29616]
[1735437069558,0.29614,3382.3,3382.0,0.72246]
[1735437070150,2.50045443,3382.6,3382.0,0.4263]
[1735437070356,0.29617,3382.0,3381.9,3.2078]
[1735437070867,0.29617,3382.0,3381.7,0.29619]
[1735437071159,3.6672,3382.1,3381.9,0.29617]
[1735437071362,0.4594,3382.1,3381.8,3.2078]
[1735437071663,0.4594,3382.1,3382.0,0.29617]
[1735437071855,0.11,3382.2,3382.1,0.29616]
[1735437072258,0.11,3382.2,3381.8,3.2078]
[1735437072464,0.29616,3382.1,3381.8,3.50398]
[1735437074364,0.11,3382.2,3381.8,3.2078]
[1735437074558,0.5474,3382.4,3382.3,0.29614]
[1735437075060,0.5474,3382.4,3381.8,3.2078]
[1735437075259,0.5474,3382.4,3382.2,0.29614]
[1735437075966,0.29614,3382.3,3382.0,0.29616]
[1735437076264,0.5474,3382.4,3381.8,3.2078]
[1735437076564,0.5474,3382.4,3381.9,0.29617]
[1735437076565,0.29615,3382.2,3381.9,0.29617]
[1735437076960,0.5474,3382.4,3382.2,0.29614]
[1735437077164,0.11,3382.4,3382.3,0.29614]
[1735437077465,0.11,3382.4,3382.2,0.29615]
[1735437077662,0.11,3382.4,3382.3,0.29614]
[1735437078466,0.11,3382.4,3381.9,0.29617]
[1735437078467,0.29616,3382.1,3381.9,0.29617]
[1735437078666,0.29615,3382.3,3382.0,0.29616]
[1735437078863,0.29615,3382.3,3382.1,0.29616]
[1735437079369,3.50395,3382.3,3381.8,3.2078]
[1735437079669,3.2078,3382.3,3382.0,0.29616]
[1735437079864,3.2078,3382.3,3381.8,0.29618]
[1735437080071,0.29616,3382.1,3381.8,0.29618]
[1735437080569,0.75695,3382.2,3381.9,0.29617]
[1735437081168,0.29616,3382.1,3381.8,3.50398]
[1735437081564,0.29617,3382.0,3381.8,3.50398]
[1735437082175,0.29617,3381.9,3381.8,3.2078]
[1735437082777,0.29617,3382.0,3381.8,3.50398]
[1735437083069,0.29617,3382.0,3381.8,3.2078]
[1735437085169,0.4608,3382.2,3381.8,3.2078]
[1735437085370,0.29617,3381.9,3381.8,3.2078]
[1735437086870,0.9016,3382.2,3381.9,0.29617]
[1735437086871,0.29616,3382.1,3381.9,0.29617]
[1735437087275,0.29617,3381.9,3381.8,3.2078]
[1735437087473,0.29617,3381.9,3381.7,0.29619]
[1735437088875,0.29619,3381.8,3381.6,0.74249]
[1735437089171,0.29618,3381.9,3381.7,0.29619]
[1735437091270,0.29619,3381.7,3381.6,0.7425]
[1735437095673,0.40619,3381.7,3381.6,0.7425]
[1735437096678,0.11,3381.7,3381.6,0.7425]
[1735437097487,0.11,3381.7,3381.6,0.2962]
[1735437104389,3.2078,3382.3,3381.6,0.2962]
[1735437104589,3.3178,3382.3,3382.2,0.29615]
[1735437105996,0.11,3382.3,3382.2,0.29615]
[1735437107490,3.50392,3382.5,3382.4,0.29613]
[1735437107689,0.29612,3382.5,3382.4,0.29613]
[1735437108190,0.29612,3382.6,3382.4,0.29613]
[1735437109396,0.29612,3382.5,3382.4,0.29613]
[1735437110192,0.29612,3382.5,3382.3,0.8792]
[1735437110399,0.29612,3382.5,3382.4,0.29613]
[1735437110695,0.29612,3382.5,3382.3,1.17533]
[1735437112195,0.4584,3382.7,3382.6,0.29611]
[1735437112501,0.7545,3382.7,3382.6,0.29611]
[1735437113808,0.7545,3382.7,3382.3,1.3361]
[1735437114002,0.4584,3382.7,3382.3,0.8792]
[1735437114199,0.29613,3382.4,3382.3,0.8792]
[1735437115096,0.29613,3382.4,3382.3,0.4536]
[1735437116307,3.6662,3382.7,3382.0,0.4207]
[1735437116509,0.29616,3382.1,3381.9,0.29617]
[1735437116804,0.4568,3382.0,3381.9,0.29617]
[1735437122203,0.29618,3381.8,3381.7,4.0852]
[1735437122503,0.29618,3381.8,3381.7,0.4567]
[1735437123204,0.4416,3381.9,3381.4,5.07541052]
[1735437123205,0.8899,3381.9,3381.4,5.07541052]
[1735437123412,0.29621,3381.5,3381.4,5.37162052]
[1735437123809,0.29621,3381.5,3381.4,0.72081]
[1735437124008,0.8899,3381.9,3381.4,0.4246]
[1735437124307,0.29621,3381.6,3381.5,0.29621]
[1735437124908,0.2962,3381.7,3381.6,0.2962]
[1735437128214,0.8899,3381.9,3381.4,0.4246]
[1735437128416,0.29621,3381.5,3381.4,0.72081]
[1735437130712,0.8899,3381.9,3381.4,0.4246]
[1735437130920,0.4568,3382.0,3381.4,2.81505443]
[1735437131117,0.444,3382.3,3381.5,0.74053]
[1735437131318,0.454,3382.4,3382.3,0.29614]
[1735437131708,0.454,3382.4,3382.2,3.2078]
[1735437131914,0.75013,3382.4,3382.3,0.29614]
[1735437132520,0.454,3382.4,3382.1,0.29616]
[1735437133020,0.29615,3382.2,3381.9,1.3364]
[1735437133217,0.29615,3382.2,3382.0,0.29617]
[1735437134023,0.454,3382.4,3381.9,1.3364]
[1735437134222,0.454,3382.4,3382.3,0.29614]
[1735437134720,3.50392,3382.6,3382.4,0.29613]
[1735437134918,3.92562,3382.6,3382.4,0.29613]
[1735437135120,0.29612,3382.5,3382.3,0.29613]
[1735437135421,3.6295,3382.6,3382.0,2.39045443]
[1735437135622,3.6295,3382.6,3382.4,0.29613]
[1735437135821,0.29612,3382.5,3382.4,0.29613]
[1735437136017,0.29612,3382.5,3382.3,0.29614]
[1735437138419,0.29612,3382.5,3381.9,2.84565443]
[1735437138619,3.6295,3382.6,3381.9,2.84565443]
[1735437138816,3.2078,3382.6,3382.5,0.29612]
[1735437139716,0.29609,3382.9,3382.2,6.33863443]
[1735437140018,3.2078,3383.0,3382.5,2.39045443]
[1735437140223,3.50388,3383.0,3382.8,0.2961]
[1735437140826,3.50388,3383.0,3382.9,0.29609]
[1735437140827,3.2078,3383.0,3382.9,0.29609]
[1735437143026,0.29606,3383.3,3383.0,0.29607]
[1735437143818,0.29606,3383.2,3383.0,0.29607]
[1735437144218,0.875,3383.4,3382.6,0.4473]
[1735437144422,0.29607,3383.2,3382.6,0.4473]
[1735437144819,0.29605,3383.3,3382.8,0.29609]
[1735437145025,3.2078,3383.3,3382.8,0.29609]
[1735437145227,0.29608,3383.0,3382.8,0.29609]
[1735437145420,3.2078,3383.3,3382.5,5.59825443]
[1735437145724,0.4658,3382.9,3382.8,0.2961]
[1735437146827,0.4658,3382.9,3382.5,5.59825443]
[1735437147028,0.29611,3382.6,3382.5,3.2078]
[1735437147227,0.29614,3382.4,3382.2,0.72064]
[1735437147824,3.2078,3382.6,3382.2,0.72064]
[1735437148223,3.2078,3382.6,3382.2,0.4245]
[1735437148526,0.29613,3382.5,3382.4,0.29613]
[1735437149028,0.29612,3382.6,3382.4,0.29613]
[1735437149229,0.4602,3382.8,3382.2,6.02275443]
[1735437149419,0.4658,3382.9,3382.2,6.02275443]
[1735437149625,0.29611,3382.7,3382.2,6.02275443]
[1735437149823,0.29611,3382.7,3382.5,0.29612]
[1735437150022,0.29611,3382.7,3382.5,3.50392]
[1735437150424,0.29611,3382.7,3382.6,0.4236]
[1735437153429,0.4598,3382.8,3382.2,2.81495443]
[1735437153633,0.29614,3382.4,3382.3,0.4556]
[1735437153836,0.4619,3382.7,3382.0,3.2078]
[1735437154027,0.4619,3382.7,3382.0,3.6297]
[1735437154225,0.29616,3382.1,3382.0,3.6297]
[1735437155829,0.29616,3382.1,3382.0,3.92587]
[1735437156028,0.29616,3382.1,3382.0,3.2078]
[1735437166128,0.29619,3381.8,3381.7,3.2078]
[1735437169229,3.2078,3381.8,3381.5,0.71811]
[1735437169437,3.6472,3381.8,3381.5,0.4219]
[1735437169736,0.29619,3381.7,3381.5,0.71811]
[1735437170130,3.6472,3381.8,3381.5,0.4219]
[1735437170335,0.2962,3381.6,3381.5,0.4219]
[1735437170826,0.2962,3381.7,3381.5,0.7181]
[1735437171031,0.2962,3381.7,3381.5,0.4219]
[1735437171231,0.2962,3381.7,3381.6,0.7208]
[1735437173142,0.4315,3381.9,3381.6,0.4246]
[1735437173338,0.72768,3381.9,3381.7,0.29619]
[1735437173639,3.2078,3382.2,3382.1,0.29616]
[1735437173833,3.2078,3382.2,3381.7,2.39045443]
[1735437174133,3.2078,3382.2,3382.1,0.29616]
[1735437174743,3.50395,3382.2,3382.0,0.29616]
[1735437175036,3.50395,3382.2,3382.1,0.4508]
[1735437176235,0.29619,3381.7,3381.6,0.4246]
[1735437177238,0.29621,3381.5,3381.4,0.424]
[1735437177639,0.29621,3381.6,3381.4,0.72022]
[1735437178938,3.2078,3381.8,3381.4,0.424]
[1735437179240,0.2962,3381.7,3381.4,0.424]
[1735437179440,0.2962,3381.7,3381.5,0.29621]
[1735437180743,0.2962,3381.7,3381.4,0.72021]
[1735437181140,0.2962,3381.7,3381.5,0.29621]
[1735437181340,3.2078,3381.8,3381.4,0.72021]
[1735437181341,0.29621,3381.6,3381.4,0.72021]
[1735437182145,0.29621,3381.5,3381.4,0.72021]
[1735437182340,0.29621,3381.6,3381.4,0.72021]
[1735437183950,0.29621,3381.6,3381.5,0.29621]
[1735437184245,0.29621,3381.6,3381.4,0.72021]
[1735437185941,0.2962,3381.7,3381.5,0.29621]
[1735437187240,3.2078,3381.8,3381.5,0.29621]
[1735437187639,3.2078,3381.8,3381.4,0.424]
[1735437187846,0.2962,3381.6,3381.4,0.72021]
[1735437189644,3.2078,3381.8,3381.4,0.424]
[1735437189645,0.29621,3381.5,3381.4,0.424]
[1735437189837,0.72731,3381.5,3381.4,0.424]
[1735437190842,0.72731,3381.5,3381.3,0.29623]
[1735437191544,0.72731,3381.5,3381.4,0.439]
[1735437192248,0.72731,3381.5,3381.4,0.8748]
[1735437194744,0.72731,3381.5,3381.4,0.439]
[1735437198448,0.29621,3381.5,3381.4,0.439]
[1735437199145,0.29621,3381.5,3381.4,0.8962]
[1735437199738,3.2078,3381.7,3381.4,3.28665443]
[1735437199949,0.29617,3382.0,3381.4,3.28665443]
[1735437200149,3.2078,3382.1,3381.9,0.29617]
[1735437200350,3.50396,3382.1,3382.0,1.3412]
[1735437203045,3.2078,3382.1,3381.4,2.39045443]
[1735437203250,3.2078,3382.1,3381.6,0.2962]
[1735437203548,0.29618,3381.9,3381.6,0.2962]
[1735437204950,0.29618,3381.9,3381.7,0.29619]
[1735437206448,0.4609,3382.4,3381.5,1.3389]
[1735437206753,0.4609,3382.4,3381.7,0.29619]
[1735437206754,0.29618,3381.9,3381.7,0.29619]
[1735437207946,0.29617,3382.0,3381.5,1.3389]
[1735437208251,0.29618,3381.9,3381.7,0.29619]
[1735437208754,0.4609,3382.4,3381.7,3.2078]
[1735437208947,0.29615,3382.2,3382.0,0.29616]
[1735437209254,0.29615,3382.2,3382.1,0.8974]
[1735437209454,0.29615,3382.2,3382.1,1.3514]
[1735437212855,0.29618,3381.9,3381.7,3.50399]
[1735437213155,0.29618,3381.9,3381.8,0.915]
[1735437214747,0.4609,3382.4,3381.8,0.915]
[1735437214964,0.29617,3382.0,3381.8,0.915]
[1735437215649,0.4609,3382.4,3381.8,0.915]
[1735437215853,0.29617,3381.9,3381.8,0.915]
[1735437216756,0.29617,3381.9,3381.8,0.4564]
[1735437217256,0.29617,3381.9,3381.8,0.8832]
[1735437222958,0.29617,3381.9,3381.8,0.4564]
[1735437223659,0.29619,3381.7,3381.6,3.9658]
[1735437223860,0.29619,3381.7,3381.6,4.4081]
[1735437227357,0.73329,3381.8,3381.7,0.29619]
[1735437227565,0.73329,3381.8,3381.7,1.34773163]
[1735437228767,0.29618,3381.9,3381.8,0.29617]
[1735437228963,0.929,3382.1,3381.7,1.05154163]
[1735437229263,0.929,3382.1,3381.9,0.29617]
[1735437229264,0.29617,3382.0,3381.9,0.29617]
[1735437230267,0.29617,3382.0,3381.9,0.29617]
[1735437231455,1.22516,3382.1,3381.9,0.29617]
[1735437231661,0.29619,3381.7,3381.6,3.2078]
[1735437232265,0.72759,3381.7,3381.6,3.2078]
[1735437233260,0.4314,3381.7,3381.5,0.29621]
[1735437233466,1.1884,3381.6,3381.5,0.29621]
[1735437236468,0.7352,3381.6,3381.5,0.29621]
[1735437236664,0.439,3381.6,3381.5,0.29621]
[1735437236867,0.439,3381.6,3381.5,3.50401]
[1735437237168,0.439,3381.6,3381.5,0.29621]
[1735437243864,0.439,3381.6,3381.5,3.50401]
[1735437245367,0.439,3381.6,3381.5,0.29621]
[1735437245966,0.439,3381.6,3381.5,3.50401]
[1735437247373,0.72758,3381.9,3381.8,0.29618]
[1735437247567,1.18838,3381.9,3381.8,0.29618]
[1735437247967,0.4608,3381.9,3381.2,4.65081052]
[1735437248175,0.29621,3381.6,3381.5,0.29621]
[1735437249067,0.29621,3381.6,3381.1,8.75801052]
[1735437249068,0.29623,3381.4,3381.3,0.29622]
[1735437249464,0.29623,3381.4,3381.1,8.75801052]
[1735437249465,0.74991,3381.5,3381.4,0.29622]
[1735437250871,0.29619,3381.8,3381.2,1.03684]
[1735437251175,0.2962,3381.7,3381.6,0.2962]
[1735437251367,0.7586,3381.7,3381.6,0.2962]
[1735437251770,0.4624,3381.7,3381.6,0.2962]
[1735437252269,0.8967,3381.7,3381.6,0.2962]
[1735437252669,1.19289,3381.7,3381.6,0.2962]
[1735437253171,0.29619,3381.7,3381.6,0.2962]
[1735437254272,0.29619,3381.7,3381.3,1.05156385]
[1735437254473,0.4368,3381.6,3381.5,0.2962]
[1735437256377,0.733,3381.6,3381.5,0.2962]
[1735437257569,0.733,3381.6,3381.5,0.29621]
[1735437257971,0.4368,3381.6,3381.1,4.1072]
[1735437258180,0.29622,3381.4,3381.2,0.29624]
[1735437258572,0.4368,3381.6,3381.5,0.29621]
[1735437259078,0.733,3381.6,3381.5,0.29621]
[1735437259280,0.4368,3381.6,3381.5,0.29621]
[1735437259677,0.733,3381.6,3381.5,0.29621]
[1735437260083,0.29621,3381.5,3381.4,0.29622]
[1735437260577,0.73301,3381.6,3381.4,0.29622]
[1735437261077,0.4368,3381.6,3381.2,0.29623]
[1735437261280,0.29622,3381.4,3381.2,0.29623]
[1735437261579,0.29622,3381.4,3381.3,0.29623]
[1735437262577,0.733,3381.6,3381.1,5.17706385]
[1735437262884,0.733,3381.6,3381.4,0.29621]
[1735437263684,0.733,3381.6,3381.5,0.29621]
[1735437264483,0.733,3381.6,3381.1,5.17706385]
[1735437264878,0.733,3381.6,3381.4,0.29621]
[1735437265071,0.29621,3381.5,3381.4,0.29621]
[1735437266983,0.4368,3381.6,3381.4,0.29621]
[1735437267379,0.29622,3381.4,3381.2,0.29624]
[1735437267680,0.29622,3381.4,3381.3,0.29623]
[1735437268479,3.2078,3381.9,3381.1,5.17706385]
[1735437268680,0.4648,3381.7,3381.1,5.17706385]
[1735437268884,0.2962,3381.6,3381.5,0.2962]
[1735437269084,0.76099,3381.7,3381.6,0.2962]
[1735437269483,0.4648,3381.7,3381.6,0.2962]
[1735437270574,0.76099,3381.7,3381.6,0.2962]
[1735437270780,0.4648,3381.7,3381.6,0.2962]
[1735437271182,0.76099,3381.7,3381.6,0.2962]
[1735437271788,0.4648,3381.7,3381.6,0.2962]
[1735437272291,0.76099,3381.7,3381.6,0.2962]
[1735437272687,0.4648,3381.7,3381.6,0.2962]
[1735437273183,0.4648,3381.7,3381.6,1.1819]
[1735437273384,0.76099,3381.7,3381.6,1.1819]
[1735437273584,0.4648,3381.7,3381.6,1.1819]
[1735437273987,0.4648,3381.7,3381.6,1.6207]
[1735437274594,0.76099,3381.7,3381.6,1.6207]
[1735437275194,0.76099,3381.7,3381.6,1.3245]
[1735437276107,0.76099,3381.7,3381.6,0.8857]
[1735437276302,0.76099,3381.7,3381.6,0.4395]
[1735437278502,0.4648,3381.7,3381.4,0.4311]
[1735437278690,3.50401,3381.5,3381.4,0.4311]
[1735437279097,3.2078,3381.5,3381.4,0.4311]
[1735437279297,0.2962,3381.6,3381.4,0.72731]
[1735437279499,0.4648,3381.7,3381.4,0.72731]
[1735437279699,0.29621,3381.5,3381.4,0.4311]
[1735437283207,0.29622,3381.4,3381.3,0.428]
[1735437284503,0.29624,3381.2,3381.0,0.29625]
[1735437284705,0.29624,3381.2,3381.0,0.72565]
[1735437284903,0.29624,3381.2,3381.1,0.29624]
[1735437285300,0.29624,3381.2,3381.0,0.4294]
[1735437285301,0.437,3381.3,3381.0,0.4294]
[1735437285506,0.29624,3381.1,3381.0,0.72565]
[1735437285703,0.29624,3381.1,3381.0,0.4294]
[1735437286406,0.29625,3381.0,3380.9,0.4611]
[1735437288006,0.29427344,3381.0,3380.9,0.4611]
[1735437288302,0.29427344,3381.0,3380.9,0.75736]
[1735437288505,0.29625,3381.1,3381.0,0.29625]
[1735437289307,0.29625,3381.0,3380.9,0.75736]
[1735437291509,1.05156385,3381.1,3380.9,0.4611]
[1735437291717,0.29624,3381.2,3381.1,0.29624]
[1735437293009,3.6557,3381.6,3380.9,0.4611]
[1735437293010,1.05156385,3381.5,3380.9,0.4611]
[1735437293309,1.05156385,3381.5,3381.0,1.05156385]
[1735437293504,1.05156385,3381.4,3381.3,0.29622]
[1735437293707,1.05156385,3381.4,3381.1,0.8857]
[1735437293899,1.34780385,3381.2,3381.1,1.18194]
[1735437295710,1.05156385,3381.2,3380.8,3.2078]
[1735437295909,0.2963,3380.6,3380.3,0.29631]
[1735437296107,0.2963,3380.5,3380.3,0.8918]
[1735437296311,3.2078,3380.4,3380.3,0.8918]
[1735437296508,0.2963,3380.5,3380.3,0.8918]
[1735437296712,3.2078,3380.4,3380.3,0.8918]
[1735437297809,3.50411,3380.4,3380.3,0.8918]
[1735437298812,0.29631,3380.4,3380.3,0.8918]
[1735437299312,3.50411,3380.4,3380.3,0.8918]
[1735437300415,0.29631,3380.4,3380.3,0.8918]
[1735437301012,3.67,3380.8,3380.3,0.8918]
[1735437301214,3.96628,3380.8,3380.5,0.29629]
[1735437301415,0.29628,3380.7,3380.3,0.8918]
[1735437301620,0.29628,3380.7,3380.5,0.2963]
[1735437303619,3.67,3380.8,3380.4,0.29631]
[1735437303620,3.50407,3380.8,3380.4,0.29631]
[1735437303819,3.50407,3380.8,3380.5,0.29629]
[1735437304118,0.29627,3380.8,3380.6,0.29629]
[1735437304318,0.29627,3380.8,3380.7,0.4638]
[1735437304814,0.9194,3381.1,3380.7,0.4638]
[1735437305119,0.29624,3381.1,3380.8,0.75376]
[1735437305318,0.29624,3381.1,3380.8,1.20886]
[1735437306020,3.2078,3381.2,3380.8,0.9126]
[1735437306215,0.29626,3381.0,3380.8,1.20887]
[1735437306423,0.29626,3380.9,3380.8,0.9126]
[1735437306921,5.60207665,3381.2,3380.6,0.29628]
[1735437306922,0.29628,3380.8,3380.6,0.29628]
[1735437307118,0.73648,3380.8,3380.7,0.4609]
[1735437307515,3.94428,3380.8,3380.7,0.4609]
[1735437307822,0.73648,3380.8,3380.7,0.4609]
[1735437309218,3.94428,3380.8,3380.7,0.4609]
[1735437311511,0.29631,3380.4,3380.3,0.9222]
[1735437312115,0.29631,3380.4,3380.3,0.4606]
[1735437312314,0.29633,3380.1,3380.0,0.4291]
[1735437312509,0.29634,3380.0,3379.9,0.9211]
[1735437312716,0.29634,3380.0,3379.9,1.21745]
[1735437316924,0.29634,3380.1,3380.0,0.29634]
[1735437322729,0.29634,3380.1,3379.9,0.9211]
[1735437322730,0.74172,3380.3,3380.2,0.29632]
[1735437322920,3.2078,3380.4,3380.3,0.29631]
[1735437326131,1.05237634,3380.5,3380.2,3.2078]
[1735437326327,0.29629,3380.6,3380.5,0.2963]
[1735437328420,3.50407,3380.9,3380.8,0.29627]
[1735437328627,3.2078,3380.9,3380.8,0.29627]
[1735437329831,0.29626,3380.9,3380.8,0.29627]
[1735437330732,3.50407,3380.9,3380.8,0.29627]
[1735437332036,3.2078,3380.9,3380.8,0.29627]
[1735437332637,0.4567,3381.1,3381.0,0.29625]
[1735437332832,5.60202411,3381.3,3380.5,1.20805]
[1735437333028,3.2078,3381.3,3381.2,0.29624]
[1735437333835,3.50403,3381.3,3381.2,0.29624]
[1735437334043,3.2078,3381.3,3381.2,0.29624]
[1735437334937,3.50403,3381.3,3381.2,0.29624]
[1735437335129,3.50403,3381.3,3380.7,0.74071]
[1735437335130,3.50403,3381.3,3381.1,0.29624]
[1735437335437,3.50403,3381.3,3381.2,0.9249]
[1735437335637,3.50403,3381.3,3381.2,1.22114]
[1735437336339,0.29623,3381.3,3381.2,1.22114]
[1735437336637,0.29623,3381.3,3381.2,0.9249]
[1735437336834,0.29623,3381.3,3381.2,1.22114]
[1735437339042,0.29623,3381.3,3381.2,0.9249]
[1735437342047,0.29623,3381.3,3381.2,1.22114]
[1735437342547,0.29623,3381.3,3381.2,0.9249]
[1735437343043,0.29623,3381.3,3381.2,1.22114]
[1735437343446,3.2078,3381.4,3381.2,0.9249]
[1735437343647,3.50402,3381.4,3381.2,0.9249]
[1735437343948,3.50402,3381.4,3381.2,1.22113]
[1735437344143,0.29623,3381.3,3381.2,1.22113]
[1735437344343,3.2078,3381.4,3381.2,0.9249]
[1735437344547,0.29622,3381.4,3381.3,0.29623]
[1735437346454,1.34812104,3381.4,3381.3,0.29623]
[1735437348053,1.34812104,3381.4,3381.2,0.9249]
[1735437348253,1.34812104,3381.4,3381.2,1.22113]
[1735437348456,0.29622,3381.4,3381.3,0.29623]
[1735437348659,0.8682,3381.5,3381.2,0.9249]
[1735437348952,0.29623,3381.3,3381.2,1.22113]
[1735437349953,0.8682,3381.5,3381.2,1.22113]
[1735437350159,0.29622,3381.4,3381.2,1.22113]
[1735437352456,0.29623,3381.3,3381.2,1.22113]
[1735437353860,0.29622,3381.4,3381.3,0.29622]
[1735437354055,0.29623,3381.3,3381.2,1.22113]
[1735437354663,0.8682,3381.5,3381.2,1.22113]
[1735437354865,0.29622,3381.4,3381.2,1.22113]
[1735437355362,0.29623,3381.3,3381.2,1.22113]
[1735437355569,0.29622,3381.4,3381.3,0.29622]
[1735437355967,0.29622,3381.4,3381.2,1.22113]
[1735437359170,0.8682,3381.5,3381.2,1.22113]
[1735437359371,0.29623,3381.3,3381.2,1.22113]
[1735437359571,3.2078,3382.2,3381.2,0.9249]
[1735437359771,0.8971,3382.0,3381.9,1.34807104]
[1735437360070,0.4662,3382.0,3381.9,1.34807104]
[1735437360563,3.2078,3382.2,3381.9,1.05190104]
[1735437360764,10.38560025,3382.6,3382.1,1.05190104]
[1735437360974,0.29613,3382.4,3382.3,0.29613]
[1735437361167,0.29613,3382.4,3382.2,0.4365]
[1735437361168,0.4309,3382.6,3382.2,0.8808]
[1735437361369,0.29614,3382.3,3382.2,1.17694]
[1735437362069,0.29614,3382.4,3382.2,1.17694]
[1735437363373,0.4309,3382.6,3382.2,0.8808]
[1735437363769,1.05190104,3382.5,3381.9,4.25970104]
[1735437363969,1.05190104,3382.1,3381.6,0.8994]
[1735437364272,1.05190104,3381.7,3381.2,4.65081052]
[1735437364472,0.29624,3381.2,3381.0,4.94706052]
[1735437364870,0.29622,3381.4,3381.0,4.65081052]
[1735437365068,0.29624,3381.2,3381.0,4.94706052]
[1735437365273,0.29624,3381.2,3381.0,0.29625]
[1735437365570,0.29624,3381.1,3380.9,1.50130104]
[1735437365770,4.25970104,3381.5,3381.0,0.29625]
[1735437365967,4.25970104,3381.5,3380.9,0.4494]
[1735437366163,0.29625,3381.0,3380.7,0.29628]
[1735437366367,0.29627,3380.8,3380.7,0.29628]
[1735437367967,0.29627,3380.8,3380.4,2.39346032]
[1735437367968,0.4289,3381.0,3380.6,0.29628]
[1735437368168,0.29629,3380.7,3380.5,0.2963]
[1735437368368,0.29629,3380.7,3380.3,3.2078]
[1735437368675,0.29629,3380.7,3380.5,0.29629]
[1735437368973,0.29629,3380.7,3380.6,0.29629]
[1735437369370,0.29627,3380.9,3380.7,0.29627]
[1735437370477,0.72515,3381.0,3380.8,0.29626]
[1735437371278,0.29626,3380.9,3380.8,0.29626]
[1735437371473,0.4289,3381.0,3380.3,3.2078]
[1735437371677,0.4289,3381.0,3380.9,0.29626]
[1735437373075,3.2078,3381.6,3380.8,3.2078]
[1735437373268,0.29622,3381.5,3381.2,0.29623]
[1735437373676,0.29625,3381.1,3380.8,0.29627]
[1735437373972,0.29625,3381.1,3380.3,3.94859]
[1735437373973,3.2078,3381.1,3380.4,0.4632]
[1735437374370,0.29627,3380.9,3380.6,0.29629]
[1735437377178,0.29628,3380.8,3380.5,0.29629]
[1735437377772,0.29628,3380.8,3380.4,0.4632]
[1735437377973,0.2963,3380.5,3380.3,3.2078]
[1735437378181,2.85226032,3381.0,3380.3,3.2078]
[1735437378382,0.29628,3380.8,3380.5,0.2963]
[1735437379573,0.4588,3381.0,3380.3,3.2078]
[1735437379767,3.50405,3381.1,3380.4,2.39346032]
[1735437379972,0.29626,3381.0,3380.4,2.39346032]
[1735437380168,3.2078,3381.1,3380.7,0.29627]
[1735437380373,0.29627,3380.8,3380.3,3.2078]
[1735437380672,0.29627,3380.8,3380.4,0.434]
[1735437381075,0.29627,3380.8,3380.6,0.29628]
[1735437381275,3.2078,3381.1,3380.6,0.29628]
[1735437381468,3.2078,3381.1,3380.4,0.434]
[1735437381674,0.29627,3380.9,3380.7,0.29627]
[1735437382276,0.29627,3380.9,3380.5,0.427]
[1735437382277,3.2078,3381.1,3380.6,0.29628]
[1735437382679,0.29628,3380.8,3380.6,0.29628]
[1735437382980,3.2078,3381.1,3380.4,0.7303]
[1735437383182,0.29629,3380.6,3380.5,0.29629]
[1735437383880,2.39346032,3381.0,3380.4,0.434]
[1735437384078,0.29631,3380.4,3380.3,3.2078]
[1735437386780,3.2078,3380.6,3380.0,0.74214]
[1735437387087,0.29633,3380.2,3380.0,0.74214]
[1735437387393,0.29633,3380.2,3380.1,0.29633]
[1735437388570,0.29634,3380.1,3380.0,0.29634]
[1735437391381,0.29634,3380.0,3379.9,0.76234]
[1735437395185,0.29634,3380.0,3379.9,0.76235]
[1735437395787,0.29634,3380.0,3379.9,0.466]
[1735437395987,0.29634,3380.0,3379.9,0.76235]
[1735437397686,0.29634,3380.0,3379.9,0.466]
[1735437398081,0.29635,3379.9,3379.8,0.29636]
[1735437399179,3.2078,3380.2,3379.6,0.466]
[1735437399384,0.29637,3379.7,3379.6,0.466]
[1735437403798,0.29637,3379.7,3379.6,0.76238]
[1735437404591,0.29634,3380.0,3379.9,0.29635]
[1735437404790,3.92924,3380.1,3380.0,0.29634]
[1735437405190,0.29636,3379.9,3379.8,0.29635]
[1735437406396,3.92923,3380.1,3380.0,0.29634]
[1735437406593,3.6329,3380.1,3380.0,0.29634]
[1735437407295,3.92923,3380.1,3380.0,0.29634]
[1735437407688,3.6329,3380.1,3380.0,0.29634]
[1735437408291,3.92923,3380.1,3380.0,0.29634]
[1735437410095,0.29634,3380.0,3379.9,0.29634]
[1735437410793,0.29637,3379.7,3379.6,0.76237]
[1735437411996,0.29637,3379.7,3379.6,0.466]